fUSD/lending_fUSD_20251006
["ID","MTS","AMOUNT","RATE_DAILY","PERIOD"]
[389653799,1759768249841,-2109.24,0.00019,2]
[389653800,1759768249851,-4100.0,0.00019,2]
[389653801,1759768249861,-5000.0,0.00019,2]
[389653802,1759768249871,-2649.59432899,0.00019,2]
[389653803,1759768249880,-565.94111902,0.00019,2]
[389653804,1759768249889,-300.0,0.00019,2]
[389653805,1759768249898,-370.68887098,0.00019,7]
[389653806,1759768249907,-151.0,0.00019,2]
[389653807,1759768249917,-151.0,0.00019,2]
[389653808,1759768249927,-151.0,0.00019,2]
[389653809,1759768249935,-151.0,0.00019,2]
[389653810,1759768249945,-158.800682,0.00019,2]
[389653811,1759768249954,-158.800682,0.00019,2]
[389653812,1759768249963,-158.800682,0.00019,2]
[389653813,1759768249972,-158.800682,0.00019,2]
[389653814,1759768249982,-151.0,0.00019,2]
[389653815,1759768249991,-151.0,0.00019,2]
[389653816,1759768250000,-890.434819,0.00019,2]
[389653817,1759768250010,-890.434819,0.00019,2]
[389653818,1759768250019,-272.210774,0.00019,2]
[389653819,1759768250028,-890.434819,0.00019,2]
[389653820,1759768250037,-890.434819,0.00019,2]
[389653821,1759768250046,-281.94716,0.00019,2]
[389653822,1759768250055,-151.0,0.00019,2]
[389653823,1759768250064,-452645.40460376,0.00019,2]
[389653824,1759768250076,-2909.71308866,0.00019,2]
[389653825,1759768250087,-6005.75905686,0.00019,2]
[389653826,1759768250098,-4436.46199999,0.00019,2]
[389653827,1759768250109,-716.58202628,0.00019,2]
[389653828,1759768250124,-38183.68773898,0.00019,2]
[389653829,1759768250133,-151.0,0.00019,2]
[389653830,1759768250143,-150.0,0.00019,2]
[389653831,1759768250152,-235.996007,0.00019,2]
[389653832,1759768250161,-235.996007,0.00019,2]
[389653833,1759768250171,-151.0,0.00019,2]
[389653834,1759768250180,-235.996007,0.00019,2]
[389653835,1759768250189,-235.996007,0.00019,2]
[389653836,1759768250198,-151.0,0.00019,2]
[389653837,1759768250209,-151.0,0.00019,2]
[389653838,1759768250219,-151.0,0.00019,2]
[389653839,1759768250228,-151.0,0.00019,2]
[389653840,1759768250237,-500.0,0.00019,2]
[389653841,1759768250247,-151.0,0.00019,2]
[389653842,1759768250256,-30062.54644033,0.00019,2]
[389653843,1759768250268,-4423.7239837,0.00019,2]
[389653844,1759768253050,-2543.0,0.00016419,2]
[389653845,1759768253060,-235.63763577,0.00017534,2]
[389653846,1759768253070,-222.493707,0.000185,2]
[389653847,1759768253080,-222.493707,0.000185,2]
[389653848,1759768253090,-6905.87728553,0.00019,2]
[389653849,1759768253102,-1110.21858276,0.00019,2]
[389653850,1759768253113,-13202.3316825,0.00019,2]
[389653851,1759768253125,-2677.41795664,0.00019,2]
[389653852,1759768253137,-2975.0,0.00019,2]
[389653853,1759768253148,-15539.77173764,0.00019,2]
[389653854,1759768253160,-6693.8,0.00019,2]
[389653855,1759768253184,-853.03602301,0.00019,2]
[389653856,1759768253195,-70524.56344935,0.00019,2]
[389653857,1759768253205,-151.0,0.00019,2]
[389653858,1759768253215,-151.0,0.00019,2]
[389653859,1759768253225,-151.0,0.00019,2]
[389653860,1759768253235,-151.0,0.00019,2]
[389653861,1759768253245,-151.0,0.00019,2]
[389653862,1759768253255,-151.0,0.00019,2]
[389653863,1759768253264,-151.0,0.00019,2]
[389653864,1759768253274,-283.433707,0.00019,2]
[389653865,1759768253284,-283.433707,0.00019,2]
[389653866,1759768253294,-283.433707,0.00019,2]
[389653867,1759768253303,-283.433707,0.00019,2]
[389653868,1759768253313,-184.191018,0.00019,2]
[389653869,1759768253323,-151.0,0.00019,2]
[389653870,1759768253332,-184.191018,0.00019,2]
[389653871,1759768253342,-184.191018,0.00019,2]
[389653872,1759768253351,-184.191018,0.00019,2]
[389653873,1759768253364,-151.0,0.00019,2]
[389653874,1759768253375,-151.0,0.00019,2]
[389653875,1759768253387,-151.0,0.00019,2]
[389653876,1759768253397,-168.324775,0.00019,2]
[389653877,1759768253408,-151.0,0.00019,2]
[389653878,1759768253418,-151.0,0.00019,2]
[389653879,1759768253428,-151.0,0.00019,2]
[389653880,1759768253439,-151.0,0.00019,2]
[389653881,1759768253448,-151.0,0.00019,2]
[389653882,1759768253458,-151.0,0.00019,2]
[389653883,1759768253468,-234.920725,0.00019,2]
[389653884,1759768253477,-235.251234,0.00019,2]
[389653885,1759768253487,-235.251234,0.00019,2]
[389653886,1759768253497,-235.251234,0.00019,2]
[389653887,1759768253507,-235.251234,0.00019,2]
[389653888,1759768253516,-193.090867,0.00019,2]
[389653889,1759768253526,-193.090867,0.00019,2]
[389653890,1759768253536,-193.090867,0.00019,2]
[389653891,1759768253546,-193.090867,0.00019,2]
[389653892,1759768253556,-151.0,0.00019,2]
[389653893,1759768253566,-151.0,0.00019,2]
[389653894,1759768253576,-151.0,0.00019,2]
[389653895,1759768253585,-151.0,0.00019,2]
[389653896,1759768253595,-151.0,0.00019,2]
[389653897,1759768253606,-151.0,0.00019,2]
[389653898,1759768253616,-201.522713,0.00019,2]
[389653899,1759768253626,-201.522713,0.00019,2]
[389653900,1759768253636,-201.522713,0.00019,2]
[389653901,1759768253646,-201.522713,0.00019,2]
[389653902,1759768253656,-164.279192,0.00019,2]
[389653903,1759768253666,-151.0,0.00019,2]
[389653904,1759768253675,-164.279192,0.00019,2]
[389653905,1759768253686,-151.0,0.00019,2]
[389653906,1759768253696,-164.279192,0.00019,2]
[389653907,1759768253706,-151.0,0.00019,2]
[389653908,1759768253716,-151.0,0.00019,2]
[389653909,1759768253726,-164.279192,0.00019,2]
[389653910,1759768253736,-151.0,0.00019,2]
[389653911,1759768253746,-151.0,0.00019,2]
[389653912,1759768253756,-151.0,0.00019,2]
[389653913,1759768253766,-151.0,0.00019,2]
[389653914,1759768253776,-151.0,0.00019,2]
[389653915,1759768253786,-151.0,0.00019,2]
[389653916,1759768253796,-151.0,0.00019,2]
[389653917,1759768253806,-151.0,0.00019,2]
[389653918,1759768253815,-151.0,0.00019,2]
[389653919,1759768253824,-240.801468,0.00019,2]
[389653920,1759768253835,-151.0,0.00019,2]
[389653921,1759768253845,-151.0,0.00019,2]
[389653922,1759768253857,-151.0,0.00019,2]
[389653923,1759768253867,-151.0,0.00019,2]
[389653924,1759768253877,-575.889768,0.00019,2]
[389653925,1759768253887,-151.0,0.00019,2]
[389653926,1759768253896,-575.889768,0.00019,2]
[389653927,1759768253906,-575.889768,0.00019,2]
[389653928,1759768253915,-575.889768,0.00019,2]
[389653929,1759768253925,-153.056477,0.00019,2]
[389653930,1759768253935,-153.572194,0.00019,2]
[389653931,1759768253946,-153.056477,0.00019,2]
[389653932,1759768253955,-151.0,0.00019,2]
[389653933,1759768253965,-153.056477,0.00019,2]
[389653934,1759768253975,-153.056477,0.00019,2]
[389653935,1759768253984,-569.528123,0.00019,2]
[389653936,1759768253994,-151.0,0.00019,2]
[389653937,1759768254004,-152.464213,0.00019,2]
[389653938,1759768254014,-569.528123,0.00019,2]
[389653939,1759768254024,-151.0,0.00019,2]
[389653940,1759768254034,-569.528123,0.00019,2]
[389653941,1759768254043,-151.0,0.00019,2]
[389653942,1759768254053,-151.0,0.00019,2]
[389653943,1759768254064,-569.528123,0.00019,2]
[389653944,1759768254074,-151.0,0.00019,2]
[389653945,1759768254084,-274.673644,0.00019,2]
[389653946,1759768254094,-151.0,0.00019,2]
[389653947,1759768254105,-151.0,0.00019,2]
[389653948,1759768254114,-222.493707,0.00019,2]
[389653949,1759768254124,-222.493707,0.00019,2]
[389653950,1759768254134,-222.493707,0.00019,2]
[389653951,1759768254146,-172.96789674,0.00019007,4]
[389653952,1759768254161,-352.80681138,0.0001901,7]
[389653953,1759768254174,-152.0,0.00019011,15]
[389653954,1759768254186,-503.31152455,0.00019021,2]
[389653955,1759768254196,-305.37392431,0.00019021,2]
[389653956,1759768254207,-1000.56188496,0.00019021,2]
[389653957,1759768254218,-741.52091168,0.00019021,2]
[389653958,1759768254228,-457.47905548,0.00019021,2]
[389653959,1759768254240,-1000.0,0.00019021,2]
[389653960,1759768254250,-1000.0,0.00019021,2]
[389653961,1759768254260,-1000.0,0.00019021,2]
[389653962,1759768254270,-1000.0,0.00019021,2]
[389653963,1759768254281,-1000.54741505,0.00019021,2]
[389653964,1759768254291,-200.09915221,0.00019021,2]
[389653965,1759768254301,-1354.07,0.00019037,7]
[389653966,1759768254311,-1354.07,0.00019037,7]
[389653967,1759768254320,-1500.0,0.00019068,2]
[389653968,1759768254330,-987.26805732,0.00019068,2]
[389653969,1759768254339,-1500.0,0.00019068,2]
[389653970,1759768254349,-1500.0,0.00019068,2]
[389653971,1759768254363,-532.21133782,0.00019068,2]
[389653972,1759768254374,-1500.0,0.00019068,2]
[389653973,1759768254385,-1500.0,0.00019068,2]
[389653974,1759768254398,-500.87860075,0.00019068,2]
[389653975,1759768254408,-1000.74890335,0.00019068,2]
[389653976,1759768254418,-1000.70123444,0.00019068,2]
[389653977,1759768254428,-1500.0,0.00019068,2]
[389653978,1759768254440,-1500.0,0.00019068,2]
[389653979,1759768254449,-1500.0,0.00019068,2]
[389653980,1759768254459,-1500.0,0.00019068,2]
[389653981,1759768254468,-1500.0,0.00019068,2]
[389653982,1759768254478,-1500.0,0.00019068,2]
[389653983,1759768254487,-1500.0,0.00019068,2]
[389653984,1759768254496,-1500.0,0.00019068,2]
[389653985,1759768254506,-1090.0,0.00019079,2]
[389653986,1759768254515,-174.10146186,0.00019084,30]
[389653987,1759768254525,-300.0,0.00019099,2]
[389653988,1759768254535,-300.0,0.00019099,2]
[389653989,1759768254544,-300.0,0.00019099,2]
[389653990,1759768254554,-300.0,0.00019099,2]
[389653991,1759768254563,-300.0,0.00019099,2]
[389653992,1759768254573,-300.0,0.00019099,2]
[389653993,1759768254582,-300.0,0.00019099,2]
[389653994,1759768254591,-2137.01,0.000191,2]
[389653995,1759768254601,-1448.12,0.000191,2]
[389653996,1759768254611,-22613.96,0.000191,2]
[389653997,1759768254620,-2099.76,0.000191,2]
[389653998,1759768254629,-300.0,0.00019122,2]
[389653999,1759768254639,-300.0,0.00019122,2]
[389654000,1759768254648,-300.0,0.00019122,2]
[389654001,1759768254660,-300.0,0.00019122,2]
[389654002,1759768254670,-300.0,0.00019122,2]
[389654003,1759768254679,-300.0,0.00019122,2]
[389654004,1759768254689,-300.0,0.00019122,2]
[389654005,1759768254698,-41007.0779216,0.00019123,2]
[389654006,1759768254707,-150.43,0.00019126,2]
[389654007,1759768254718,-3234.68,0.00019151,2]
[389654008,1759768254728,-300.0,0.00019177,2]
[389654009,1759768254738,-300.0,0.00019177,2]
[389654010,1759768254748,-300.0,0.00019177,2]
[389654011,1759768254756,-300.0,0.00019177,2]
[389654012,1759768254766,-300.0,0.00019177,2]
[389654013,1759768254775,-300.0,0.00019177,2]
[389654014,1759768254785,-300.0,0.00019177,2]
[389654015,1759768254794,-300.0,0.00019177,2]
[389654016,1759768254804,-300.0,0.00019177,2]
[389654017,1759768254814,-300.0,0.00019177,2]
[389654018,1759768254823,-300.0,0.00019177,2]
[389654019,1759768254833,-300.0,0.00019177,2]
[389654020,1759768254842,-500.0,0.00019178,2]
[389654021,1759768254853,-2786.0,0.00019178,2]
[389654022,1759768254862,-500.0,0.00019178,2]
[389654023,1759768254871,-1249.0,0.00019178,2]
[389654024,1759768254881,-500.0,0.00019178,2]
[389654025,1759768254893,-470.0,0.00019178,2]
[389654026,1759768254903,-461.84407545,0.00019178,2]
[389654027,1759768254914,-151.0,0.00019178,2]
[389654028,1759768254924,-151.0,0.00019178,2]
[389654029,1759768254934,-151.0,0.00019178,2]
[389654030,1759768254946,-151.0,0.00019178,2]
[389654031,1759768254955,-158.800682,0.00019178,2]
[389654032,1759768254965,-158.800682,0.00019178,2]
[389654033,1759768254975,-3001.1224206,0.00019178,2]
[389654034,1759768254984,-890.434819,0.00019178,2]
[389654035,1759768254993,-890.434819,0.00019178,2]
[389654036,1759768255003,-890.434819,0.00019178,2]
[389654037,1759768255012,-890.434819,0.00019178,2]
[389654038,1759768255022,-151.0,0.00019178,2]
[389654039,1759768255033,-151.0,0.00019178,2]
[389654040,1759768255045,-665.0,0.00019178,2]
[389654041,1759768255054,-151.0,0.00019178,2]
[389654042,1759768255063,-916.79841598,0.00019178,2]
[389654043,1759768255073,-151.0,0.00019178,2]
[389654044,1759768255084,-200.0,0.00019178,2]
[389654045,1759768255094,-3351.96,0.00019178,2]
[389654046,1759768255104,-5000.0,0.00019178,2]
[389654047,1759768255113,-320.02,0.00019178,2]
[389654048,1759768255123,-4000.0,0.00019178,30]
[389654049,1759768255132,-151.0,0.00019178,2]
[389654050,1759768255141,-151.0,0.00019178,2]
[389654051,1759768255151,-151.0,0.00019178,2]
[389654052,1759768255160,-151.0,0.00019178,2]
[389654053,1759768255170,-151.0,0.00019178,2]
[389654054,1759768255180,-151.0,0.00019178,2]
[389654055,1759768255190,-160.12005825,0.00019178,2]
[389654056,1759768255199,-150.0,0.00019178,2]
[389654057,1759768255208,-150.0,0.00019178,2]
[389654058,1759768255218,-5026.55837,0.000192,30]
[389654059,1759768255273,-150.0,0.000192,4]
[389654060,1759768255283,-370.68887098,0.000192,30]
[389654061,1759768255292,-152.0,0.00019259,16]
[389654062,1759768255302,-249.05892577,0.00019284,2]
[389654063,1759768255311,-226.23190041,0.00019303,30]
[389654064,1759768255320,-1354.07,0.00019311,7]
[389654065,1759768255329,-1354.07,0.00019311,7]
[389654066,1759768255338,-223.79463166,0.00019334,2]
[389654067,1759768255348,-3715.77974058,0.00019344,2]
[389654068,1759768255358,-4405.30768951,0.00019351,2]
[389654069,1759768255371,-19144.14552486,0.00019352,2]
[389654070,1759768255380,-4117.0,0.00019419,2]
[389654071,1759768255390,-1181.0,0.00019419,2]
[389654072,1759768255400,-2543.0,0.00019419,2]
[389654073,1759768255411,-5595.27365918,0.00019432,2]
[389654074,1759768255421,-1000.0,0.00019438,2]
[389654075,1759768255430,-500.0,0.00019452,2]
[389654076,1759768255441,-2786.0,0.00019452,2]
[389654077,1759768255452,-500.0,0.00019452,2]
[389654078,1759768255461,-1249.0,0.00019452,2]
[389654079,1759768255472,-500.0,0.00019452,2]
[389654080,1759768255481,-470.0,0.00019452,2]
[389654081,1759768255491,-665.0,0.00019452,2]
[389654082,1759768255501,-5152.91979535,0.00019474,2]
[389654083,1759768255510,-5000.0,0.00019474,2]
[389654084,1759768255519,-5000.0,0.00019474,2]
[389654085,1759768255529,-5000.0,0.00019474,2]
[389654086,1759768255538,-5000.0,0.00019474,2]
[389654087,1759768255557,-2500.0,0.00019491,3]
[389654088,1759768255567,-200.0,0.000195,2]
[389654089,1759768255577,-2500.0,0.000195,3]
[389654090,1759768255586,-370.68887098,0.000195,3]
[389654091,1759768255596,-152.0,0.00019506,17]
[389654092,1759768255607,-2293.72161,0.0001951,2]
[389654093,1759768255616,-253.87445671,0.00019519,2]
[389654094,1759768255626,-1453.57188233,0.00019521,3]
[389654095,1759768255635,-2336.0,0.00019534,2]
[389654096,1759768255645,-1000.62592455,0.00019568,2]
[389654097,1759768255654,-1120.67351512,0.00019568,2]
[389654098,1759768255664,-1000.0,0.00019568,2]
[389654099,1759768255674,-500.62185362,0.00019568,2]
[389654100,1759768255685,-168.540227,0.0001958,2]
[389654101,1759768255696,-214.404976,0.0001958,2]
[389654102,1759768255706,-162.294121,0.0001958,2]
[389654103,1759768255716,-181.168478,0.0001958,2]
[389654104,1759768255725,-1354.07,0.00019585,7]
[389654105,1759768255735,-1354.07,0.00019585,7]
[389654106,1759768255744,-155.0,0.00019589,3]
[389654107,1759768255754,-5800.0,0.000196,2]
[389654108,1759768255764,-150.0,0.000196,4]
[389654109,1759768255774,-300.0,0.000196,2]
[389654110,1759768255783,-300.0,0.000196,2]
[389654111,1759768255793,-300.0,0.000196,2]
[389654112,1759768255803,-300.0,0.000196,2]
[389654113,1759768255812,-300.0,0.000196,2]
[389654114,1759768255822,-300.0,0.000196,2]
[389654115,1759768255831,-238355.04979463,0.00019601,2]
[389654116,1759768255841,-151.0,0.00019601,2]
[389654117,1759768255852,-151.0,0.00019601,2]
[389654118,1759768255861,-151.0,0.00019601,2]
[389654119,1759768255871,-151.0,0.00019601,2]
[389654120,1759768255881,-151.0,0.00019601,2]
[389654121,1759768255891,-151.0,0.00019601,2]
[389654122,1759768255902,-151.0,0.00019601,2]
[389654123,1759768255913,-151.0,0.00019601,2]
[389654124,1759768255923,-151.0,0.00019601,2]
[389654125,1759768255932,-235.251234,0.00019601,2]
[389654126,1759768255942,-235.251234,0.00019601,2]
[389654127,1759768255952,-235.251234,0.00019601,2]
[389654128,1759768255962,-235.251234,0.00019601,2]
[389654129,1759768255972,-193.090867,0.00019601,2]
[389654130,1759768255981,-193.090867,0.00019601,2]
[389654131,1759768255991,-193.090867,0.00019601,2]
[389654132,1759768256001,-193.090867,0.00019601,2]
[389654133,1759768256010,-151.0,0.00019601,2]
[389654134,1759768256020,-151.0,0.00019601,2]
[389654135,1759768256029,-169.655479,0.00019601,2]
[389654136,1759768256038,-297.652585,0.00019601,2]
[389654137,1759768256048,-151.0,0.00019601,2]
[389654138,1759768256057,-201.522713,0.00019601,2]
[389654139,1759768256067,-201.522713,0.00019601,2]
[389654140,1759768256076,-201.522713,0.00019601,2]
[389654141,1759768256085,-201.522713,0.00019601,2]
[389654142,1759768256094,-164.279192,0.00019601,2]
[389654143,1759768256105,-151.0,0.00019601,2]
[389654144,1759768256115,-164.279192,0.00019601,2]
[389654145,1759768256125,-151.0,0.00019601,2]
[389654146,1759768256134,-164.279192,0.00019601,2]
[389654147,1759768256144,-151.0,0.00019601,2]
[389654148,1759768256154,-151.0,0.00019601,2]
[389654149,1759768256165,-164.279192,0.00019601,2]
[389654150,1759768256175,-151.0,0.00019601,2]
[389654151,1759768256184,-151.0,0.00019601,2]
[389654152,1759768256194,-151.0,0.00019601,2]
[389654153,1759768256204,-151.0,0.00019601,2]
[389654154,1759768256214,-151.0,0.00019601,2]
[389654155,1759768256223,-151.0,0.00019601,2]
[389654156,1759768256233,-174.104145,0.00019601,2]
[389654157,1759768256243,-151.0,0.00019601,2]
[389654158,1759768256253,-151.0,0.00019601,2]
[389654159,1759768256263,-151.0,0.00019601,2]
[389654160,1759768256271,-151.0,0.00019601,2]
[389654161,1759768256281,-151.0,0.00019601,2]
[389654162,1759768256290,-575.889768,0.00019601,2]
[389654163,1759768256299,-151.60086,0.00019601,2]
[389654164,1759768256308,-575.889768,0.00019601,2]
[389654165,1759768256318,-575.889768,0.00019601,2]
[389654166,1759768256327,-575.889768,0.00019601,2]
[389654167,1759768256337,-153.056477,0.00019601,2]
[389654168,1759768256346,-153.056477,0.00019601,2]
[389654169,1759768256356,-151.0,0.00019601,2]
[389654170,1759768256369,-153.056477,0.00019601,2]
[389654171,1759768256378,-153.056477,0.00019601,2]
[389654172,1759768256387,-569.528123,0.00019601,2]
[389654173,1759768256396,-151.0,0.00019601,2]
[389654174,1759768256407,-569.528123,0.00019601,2]
[389654175,1759768256416,-151.0,0.00019601,2]
[389654176,1759768256425,-569.528123,0.00019601,2]
[389654177,1759768256435,-151.0,0.00019601,2]
[389654178,1759768256446,-151.0,0.00019601,2]
[389654179,1759768256455,-569.528123,0.00019601,2]
[389654180,1759768256464,-151.0,0.00019601,2]
[389654181,1759768256474,-151.0,0.00019601,2]
[389654182,1759768256486,-151.0,0.00019601,2]
[389654183,1759768256495,-151.0,0.00019601,2]
[389654184,1759768256504,-151.0,0.00019601,2]
[389654185,1759768256514,-222.493707,0.00019601,2]
[389654186,1759768256523,-248.307289,0.00019601,2]
[389654187,1759768256532,-222.493707,0.00019601,2]
[389654188,1759768256541,-222.493707,0.00019601,2]
[389654189,1759768256551,-500.0,0.00019616,2]
[389654190,1759768256560,-2000.0,0.00019616,2]
[389654191,1759768256570,-2107.77281138,0.00019616,2]
[389654192,1759768256579,-2000.0,0.00019616,2]
[389654193,1759768256588,-561.21815978,0.00019616,2]
[389654194,1759768256599,-189.14859866,0.00019616,2]
[389654195,1759768256609,-2000.0,0.00019616,2]
[389654196,1759768256619,-2000.0,0.00019616,2]
[389654197,1759768256628,-814.89598252,0.00019616,2]
[389654198,1759768256638,-1992.02192993,0.00019616,2]
[389654199,1759768256647,-233.46639772,0.00019616,2]
[389654200,1759768256656,-1897.42797403,0.00019616,2]
[389654201,1759768256666,-2000.0,0.00019616,2]
[389654202,1759768256675,-257.91778498,0.00019656,2]
[389654203,1759768256684,-359.76179104,0.00019656,2]
[389654204,1759768256692,-2000.0,0.0001967,2]
[389654205,1759768256701,-500.0,0.00019674,2]
[389654206,1759768256710,-151.938276,0.00019699,2]
[389654207,1759768256719,-151.723226,0.00019699,2]
[389654208,1759768256728,-2717.527174,0.00019699,2]
[389654209,1759768256737,-3170.448371,0.00019699,2]
[389654210,1759768256746,-220.547285,0.00019699,2]
[389654211,1759768256756,-155.028885,0.00019699,2]
[389654212,1759768256765,-172.168852,0.00019699,2]
[389654213,1759768256774,-4382.045832,0.00019699,2]
[389654214,1759768256783,-2787.264623,0.00019699,2]
[389654215,1759768256792,-152.807636,0.00019699,2]
[389654216,1759768256801,-152.807636,0.00019699,2]
[389654217,1759768256810,-458.422911,0.00019699,2]
[389654218,1759768256819,-500.0,0.00019726,2]
[389654219,1759768256828,-2786.0,0.00019726,2]
[389654220,1759768256836,-500.0,0.00019726,2]
[389654221,1759768256846,-1249.0,0.00019726,2]
[389654222,1759768256856,-500.0,0.00019726,2]
[389654223,1759768256866,-470.0,0.00019726,2]
[389654224,1759768256875,-665.0,0.00019726,2]
[389654225,1759768256885,-235.996007,0.00019726,2]
[389654226,1759768256894,-235.996007,0.00019726,2]
[389654227,1759768256903,-151.0,0.00019726,2]
[389654228,1759768256912,-235.996007,0.00019726,2]
[389654229,1759768256921,-235.996007,0.00019726,2]
[389654230,1759768256930,-151.0,0.00019726,2]
[389654231,1759768256940,-151.0,0.00019726,2]
[389654232,1759768256949,-151.0,0.00019726,2]
[389654233,1759768256958,-151.0,0.00019726,2]
[389654234,1759768256967,-151.0,0.00019726,2]
[389654235,1759768256978,-151.0,0.00019726,2]
[389654236,1759768256988,-292.344603,0.00019726,2]
[389654237,1759768256999,-151.0,0.00019726,2]
[389654238,1759768257008,-151.0,0.00019726,2]
[389654239,1759768257018,-283.433707,0.00019726,2]
[389654240,1759768257030,-283.433707,0.00019726,2]
[389654241,1759768257039,-283.433707,0.00019726,2]
[389654242,1759768257049,-283.433707,0.00019726,2]
[389654243,1759768257057,-184.191018,0.00019726,2]
[389654244,1759768257066,-184.191018,0.00019726,2]
[389654245,1759768257075,-184.191018,0.00019726,2]
[389654246,1759768257084,-184.191018,0.00019726,2]
[389654247,1759768257093,-500.0,0.00019726,2]
[389654248,1759768257103,-500.0,0.00019726,2]
[389654249,1759768257112,-500.0,0.00019726,2]
[389654250,1759768257121,-500.0,0.00019726,2]
[389654251,1759768257130,-500.0,0.00019726,2]
[389654252,1759768257139,-500.0,0.00019726,2]
[389654253,1759768257150,-176.54530597,0.00019726,2]
[389654254,1759768257159,-250.0,0.00019726,2]
[389654255,1759768257169,-151.0,0.00019726,2]
[389654256,1759768257178,-156.587,0.00019726,2]
[389654257,1759768257186,-2336.0,0.00019735,2]
[389654258,1759768257195,-150.0,0.0001975,2]
[389654259,1759768257204,-152.0,0.00019754,18]
[389654260,1759768257213,-337.080449,0.0001976,2]
[389654261,1759768257222,-214.404971,0.0001976,2]
[389654262,1759768257231,-452.921196,0.0001976,2]
[389654263,1759768257240,-337.080449,0.0001976,2]
[389654264,1759768257249,-214.404971,0.0001976,2]
[389654265,1759768257258,-452.921196,0.0001976,2]
[389654266,1759768257270,-263.29059058,0.00019771,5]
[389654267,1759768257280,-7500.0,0.000198,7]
[389654268,1759768257289,-1354.07,0.00019859,7]
[389654269,1759768257299,-1354.07,0.00019859,7]
[389654270,1759768257308,-8000.0,0.00019879,5]
[389654271,1759768257318,-807.65,0.00019893,2]
[389654272,1759768257327,-947.27,0.00019893,2]
[389654273,1759768257337,-939.66,0.00019893,2]
[389654274,1759768257347,-807.65,0.00019893,2]
[389654275,1759768257357,-259.8,0.00019893,2]
[389654276,1759768257370,-474.0,0.00019893,2]
[389654277,1759768257381,-474.0,0.00019893,2]
[389654278,1759768257391,-474.0,0.00019893,2]
[389654279,1759768257401,-1614.82,0.00019893,2]
[389654280,1759768257411,-300.0,0.00019899,2]
[389654281,1759768257421,-1500.0,0.000199,7]
[389654282,1759768257430,-4405.30768951,0.000199,2]
[389654283,1759768257444,-3715.77974058,0.000199,2]
[389654284,1759768257452,-399.88064702,0.000199,2]
[389654285,1759768257462,-576.46691344,0.000199,2]
[389654286,1759768257471,-419.98885516,0.000199,2]
[389654287,1759768257480,-1156.97761633,0.000199,2]
[389654288,1759768257490,-2336.0,0.00019937,2]
[389654289,1759768257500,-300.0,0.00019949,2]
[389654290,1759768257509,-300.0,0.00019949,2]
[389654291,1759768257519,-300.0,0.00019949,2]
[389654292,1759768257528,-300.0,0.00019949,2]
[389654293,1759768257538,-300.0,0.00019949,2]
[389654294,1759768257549,-300.0,0.00019949,2]
[389654295,1759768257558,-123171.28614363,0.0001995,15]
[389654296,1759768257765,-500.0,0.00015481,2]
[389654297,1759768257776,-6228.45395267,0.0001995,15]
[389654298,1759768257787,-1801.50899295,0.0001995,15]